bitfinex-derivatives/quotes_BTCF0:USTF0_20210703
["timestamp","ask_amount","ask_price","bid_price","bid_amount"]
[1625271896418,5.36055391,33632.0,33631.0,4.93367514]
[1625271897423,5.36055391,33632.0,33631.0,4.91978581]
[1625271897521,9.60565391,33632.0,33631.0,4.91978581]
[1625271897675,9.60565391,33632.0,33631.0,4.93367452]
[1625271899475,9.60565391,33632.0,33631.0,4.91978581]
[1625271900735,5.36055391,33632.0,33631.0,4.91978581]
[1625271900836,5.07938391,33632.0,33631.0,5.13117581]
[1625271901285,5.07938391,33632.0,33631.0,9.66637581]
[1625271901387,5.07938391,33632.0,33631.0,5.13117581]
[1625271901837,3.69265854,33632.0,33631.0,6.71592361]
[1625271902238,2.48265574,33632.0,33631.0,6.71592361]
[1625271902589,3.69457899,33632.0,33631.0,6.71592361]
[1625271905492,3.69457899,33632.0,33631.0,5.13117581]
[1625271906896,3.69457899,33632.0,33631.0,4.91978581]
[1625271909800,3.69457899,33632.0,33631.0,5.13792581]
[1625271909898,3.69457899,33632.0,33631.0,5.19692581]
[1625271910349,3.69457899,33632.0,33631.0,9.48882581]
[1625271910450,3.69457899,33632.0,33631.0,11.07341262]
[1625271910650,3.69457899,33632.0,33631.0,11.31398806]
[1625271910750,3.69457899,33632.0,33631.0,7.02208806]
[1625271910900,2.48265574,33632.0,33631.0,7.02208806]
[1625271911300,2.48265574,33632.0,33631.0,11.31388806]
[1625271912758,2.48265574,33632.0,33631.0,11.32777379]
[1625271912856,2.48265574,33632.0,33631.0,7.03597379]
[1625271914011,2.48265574,33632.0,33631.0,7.02208806]
[1625271914360,2.48265574,33632.0,33631.0,7.03597375]
[1625271915061,1.44941607,33632.0,33631.0,7.03597375]
[1625271916463,1.44941607,33632.0,33631.0,7.02208806]
[1625271916715,5.84581607,33632.0,33631.0,7.02208806]
[1625271916915,1.44941607,33632.0,33631.0,7.02208806]
[1625271917015,2.48923537,33632.0,33631.0,7.02208806]
[1625271918417,1.44941607,33632.0,33631.0,7.03597404]
[1625271918517,1.44941607,33632.0,33631.0,10.75267404]
[1625271918619,1.44941607,33632.0,33631.0,7.02208806]
[1625271918919,2.48910122,33632.0,33631.0,7.02208806]
[1625271922828,1.44941607,33632.0,33631.0,7.02208806]
[1625271923328,2.48916531,33632.0,33631.0,7.02208806]
[1625271923428,2.48916531,33632.0,33631.0,11.26208806]
[1625271923577,1.44941607,33632.0,33631.0,11.26208806]
[1625271924179,1.44941607,33632.0,33631.0,7.02208806]
[1625271925837,1.44941607,33632.0,33631.0,11.93398806]
[1625271926287,2.4890402,33632.0,33631.0,11.93398806]
[1625271926589,1.44941607,33632.0,33631.0,11.93398806]
[1625271928492,2.48889228,33632.0,33631.0,11.93398806]
[1625271928591,2.48889228,33632.0,33631.0,7.02208806]
[1625271928943,1.44941607,33632.0,33631.0,7.02208806]
[1625271929446,2.48844434,33632.0,33631.0,5.43750125]
[1625271929548,2.48844434,33632.0,33631.0,5.21936125]
[1625271930000,3.7002969,33632.0,33631.0,5.21936125]
[1625271931600,3.7002969,33632.0,33631.0,5.44830125]
[1625271931601,2.48844434,33632.0,33631.0,5.44830125]
[1625271932555,2.48844434,33632.0,33631.0,7.03186695]
[1625271934457,2.48844434,33632.0,33631.0,11.95116695]
[1625271938467,2.48844434,33632.0,33631.0,7.03186695]
[1625271939070,2.48844434,33632.0,33631.0,7.04577171]
[1625271939570,2.48844434,33632.0,33631.0,7.03186695]
[1625271941778,2.48844434,33632.0,33631.0,11.75106695]
[1625271943031,2.48844434,33632.0,33631.0,11.76497181]
[1625271943282,2.48844434,33632.0,33631.0,11.75106695]
[1625271946188,2.48844434,33632.0,33631.0,11.76497165]
[1625271947492,1.44941607,33632.0,33631.0,11.76497165]
[1625271948096,1.44941607,33632.0,33631.0,7.04577165]
[1625271948996,2.48898716,33632.0,33631.0,7.04577165]
[1625271949796,2.48898716,33632.0,33631.0,12.07177165]
[1625271950697,2.48898716,33632.0,33631.0,12.05786695]
[1625271953303,2.48898716,33632.0,33631.0,7.03186695]
[1625271959769,2.75779716,33632.0,33631.0,6.80292695]
[1625271960371,5.34508565,33632.0,33631.0,5.21936125]
[1625271964225,5.34508565,33632.0,33631.0,5.43134125]
[1625271972345,3.96520995,33632.0,33631.0,5.43134125]
[1625271972545,3.69639995,33632.0,33631.0,5.43134125]
[1625271977306,2.48898716,33632.0,33631.0,5.43134125]
[1625271978557,3.70024882,33632.0,33631.0,5.43134125]
[1625271979460,2.48898716,33632.0,33631.0,5.43134125]
[1625271980912,3.70011607,33632.0,33631.0,5.43134125]
[1625271984420,2.48898716,33632.0,33631.0,5.43134125]
[1625271986025,3.69982548,33632.0,33631.0,5.43134125]
[1625271986123,3.69982548,33632.0,33631.0,5.21936125]
[1625271989785,3.69982548,33632.0,33631.0,9.22156125]
[1625271989982,3.69982548,33632.0,33631.0,5.21936125]
[1625271995646,5.08575668,33632.0,33631.0,5.21936125]
[1625271996798,3.69982548,33632.0,33631.0,5.21936125]
[1625271997948,5.08884821,33632.0,33631.0,5.21936125]
[1625272019946,3.69982548,33632.0,33631.0,5.21936125]
[1625272020147,3.45925004,33632.0,33631.0,5.21936125]
[1625272020249,3.45925004,33632.0,33631.0,5.27836125]
[1625272020499,3.45925004,33632.0,33631.0,5.29219484]
[1625272020799,1.20884063,33632.0,33631.0,6.87665333]
[1625272021699,0.52025983,33632.0,33631.0,6.87665333]
[1625272022100,0.86968497,33632.0,33631.0,6.87665333]
[1625272022649,0.52422751,33632.0,33631.0,6.87665333]
[1625272023151,0.61167575,33632.0,33631.0,6.87665333]
[1625272023901,0.26225061,33632.0,33631.0,6.87665333]
[1625272024301,0.52396963,33632.0,33631.0,6.87665333]
[1625272024750,0.61136059,33632.0,33631.0,6.87665333]
[1625272025000,0.61136059,33632.0,33631.0,6.86281974]
[1625272025651,0.61136059,33632.0,33631.0,6.87665323]
[1625272025752,0.26219333,33632.0,33631.0,6.87665323]
[1625272026653,0.26219333,33632.0,33631.0,6.86281974]
[1625272027253,0.08739096,33632.0,33631.0,6.86281974]
[1625272028757,0.61107133,33633.0,33631.0,6.86281974]
[1625272028855,0.61107133,33633.0,33632.0,3.8311]
[1625272028956,0.61107133,33633.0,33632.0,4.06761]
[1625272029057,0.61107133,33633.0,33632.0,4.1922509]
[1625272029257,0.61107133,33633.0,33632.0,10.69756417]
[1625272029658,0.26203595,33633.0,33632.0,10.69756417]
[1625272029860,0.26203595,33633.0,33632.0,6.86646417]
[1625272031263,0.26203595,33633.0,33632.0,7.10703961]
[1625272031461,0.08740575,33633.0,33632.0,7.10703961]
[1625272032011,0.08740575,33633.0,33632.0,11.23843961]
[1625272032113,0.08740575,33633.0,33632.0,7.10703961]
[1625272032212,0.61149446,33634.0,33632.0,7.10703961]
[1625272032562,0.52398952,33634.0,33633.0,6.50337608]
[1625272032663,0.52398952,33634.0,33633.0,6.62137608]
[1625272032761,0.52398952,33634.0,33633.0,6.56237608]
[1625272032862,0.52398952,33634.0,33633.0,6.56901741]
[1625272032863,4.64438952,33634.0,33633.0,6.56901741]
[1625272032964,4.64438952,33634.0,33633.0,6.62801741]
[1625272033113,6.38887019,33634.0,33633.0,5.04611512]
[1625272033313,6.62944563,33634.0,33633.0,5.04611512]
[1625272033414,6.62944563,33634.0,33633.0,4.98711512]
[1625272033516,7.85039084,33634.0,33633.0,3.58097975]
[1625272033664,7.85039084,33634.0,33633.0,3.63997975]
[1625272033869,5.12463862,33634.0,33633.0,3.58097975]
[1625272034269,5.12463862,33634.0,33633.0,3.63997975]
[1625272034369,5.12463862,33634.0,33633.0,2.4096113]
[1625272034669,5.12463862,33634.0,33633.0,3.64016216]
[1625272036773,3.72999084,33634.0,33633.0,3.64016216]
[1625272037125,3.72999084,33634.0,33633.0,5.0463962]
[1625272039129,2.50904563,33634.0,33633.0,5.0463962]
[1625272045242,3.72748725,33634.0,33633.0,4.9873962]
[1625272045340,7.97618725,33634.0,33633.0,4.9873962]
[1625272045743,9.36695886,33634.0,33633.0,2.4096113]
[1625272045844,9.36695886,33634.0,33633.0,2.3506113]
[1625272046043,5.11825886,33634.0,33633.0,2.3506113]
[1625272046600,9.32015886,33634.0,33633.0,2.4096113]
[1625272046804,9.32015886,33634.0,33633.0,2.3506113]
[1625272047152,5.11825886,33634.0,33633.0,2.4096113]
[1625272047403,5.11825886,33634.0,33633.0,2.3506113]
[1625272048352,9.93755886,33634.0,33633.0,2.3506113]
[1625272048603,9.93755886,33634.0,33633.0,2.4096113]
[1625272048704,9.93755886,33634.0,33633.0,2.3506113]
[1625272049706,9.93755886,33634.0,33633.0,2.4096113]
[1625272050108,5.11825886,33634.0,33633.0,2.4096113]
[1625272050609,5.11825886,33634.0,33633.0,2.3506113]
[1625272050759,5.11825886,33634.0,33633.0,2.4096113]
[1625272050859,5.11825886,33634.0,33633.0,2.3506113]
[1625272051109,5.11825886,33634.0,33633.0,2.4096113]
[1625272051209,5.11825886,33634.0,33633.0,2.3506113]
[1625272051410,5.11825886,33634.0,33633.0,2.4096113]
[1625272052513,3.72748725,33634.0,33633.0,3.63997862]
[1625272053462,5.11907789,33634.0,33633.0,3.63997862]
[1625272055116,3.72748725,33634.0,33633.0,3.63997862]
[1625272055566,5.11946589,33634.0,33633.0,3.63997862]
[1625272056218,3.72748725,33634.0,33633.0,3.63997862]
[1625272057619,5.12063316,33634.0,33633.0,3.63997862]
[1625272057971,3.72748725,33634.0,33633.0,3.63997862]
[1625272059070,5.12105464,33634.0,33633.0,3.63997862]
[1625272062126,3.72748725,33634.0,33633.0,3.63997862]
[1625272063731,5.12092882,33634.0,33633.0,3.63997862]
[1625272064733,3.72748725,33634.0,33633.0,3.63997862]
[1625272065381,3.72748725,33634.0,33633.0,3.93577862]
[1625272073055,5.1236366,33634.0,33633.0,3.93577862]
[1625272077912,3.72748725,33634.0,33633.0,5.34244227]
[1625272078211,3.67148725,33634.0,33633.0,5.34244227]
[1625272078461,5.06718895,33634.0,33633.0,3.93577862]
[1625272078561,5.06718895,33634.0,33633.0,3.63997862]
[1625272090635,5.06718895,33634.0,33633.0,5.04785784]
[1625272091036,10.02988895,33634.0,33633.0,5.04785784]
[1625272091839,5.06718895,33634.0,33633.0,5.04785784]
[1625272093588,4.82661351,33634.0,33633.0,5.04785784]
[1625272094138,5.30776439,33634.0,33633.0,5.04785784]
[1625272095792,4.82661351,33634.0,33633.0,5.04785784]
[1625272095897,4.82661351,33634.0,33633.0,5.06169468]
[1625272096043,3.43091181,33634.0,33633.0,6.646105]
[1625272096143,3.43091181,33634.0,33633.0,6.88668044]
[1625272096494,1.16555105,33634.0,33633.0,6.88668044]
[1625272096943,1.16555105,33634.0,33633.0,12.10048044]
[1625272097193,0.87451594,33634.0,33633.0,12.10048044]
[1625272097646,0.52633877,33634.0,33633.0,13.86065026]
[1625272097994,0.52633877,33634.0,33633.0,6.88668044]
[1625272098548,0.26308466,33634.0,33633.0,6.88668044]
[1625272098796,0.26308466,33634.0,33633.0,6.8728436]
[1625272099648,0.6134384,33634.0,33633.0,6.8728436]
[1625272100100,0.26308466,33634.0,33633.0,6.8728436]
[1625272100808,0.52562052,33634.0,33633.0,6.8728436]
[1625272101407,0.61332229,33634.0,33633.0,6.8728436]
[1625272102510,0.2630714,33634.0,33633.0,6.8728436]
[1625272103010,0.52588388,33634.0,33633.0,6.8728436]
[1625272104110,0.26316631,33634.0,33633.0,6.8728436]
[1625272105617,0.20416631,33634.0,33633.0,6.82767388]
[1625272105717,0.14516631,33634.0,33633.0,6.82767388]
[1625272105819,0.14516631,33634.0,33633.0,11.86647388]
[1625272105919,0.08779668,33634.0,33633.0,11.80747388]
[1625272106020,1.22687541,33639.0,33633.0,11.80747388]
[1625272106120,1.09087541,33639.0,33638.0,0.24057544]
[1625272106220,1.09087541,33639.0,33638.0,0.48115088]
[1625272106321,1.09087541,33639.0,33638.0,0.82935088]
[1625272106421,1.09087541,33639.0,33638.0,0.88835088]
[1625272106623,1.05094694,33639.0,33638.0,0.90881437]
[1625272106871,1.05094694,33639.0,33638.0,0.8949881]
[1625272107124,0.24057544,33649.0,33638.0,5.63954255]
[1625272107223,0.24057544,33649.0,33640.0,3.7424]
[1625272107322,0.24057544,33649.0,33640.0,3.8604]
[1625272107573,0.24057544,33649.0,33645.0,1.40468641]
[1625272107672,0.24057544,33649.0,33645.0,1.71912641]
[1625272107922,0.24057544,33649.0,33645.0,1.72576364]
[1625272108171,0.24057544,33649.0,33645.0,2.20691452]
[1625272109024,0.24057544,33649.0,33645.0,2.26591452]
[1625272109423,0.17357544,33646.0,33645.0,2.20691452]
[1625272109523,0.16757544,33646.0,33645.0,2.26591452]
[1625272109874,0.16757544,33646.0,33645.0,2.20691452]
[1625272110427,0.16757544,33646.0,33645.0,2.26591452]
[1625272111177,1.40328634,33652.0,33645.0,2.26591452]
[1625272111426,1.40328634,33652.0,33646.0,0.0066367]
[1625272111528,1.40328634,33652.0,33646.0,0.0656367]
[1625272111678,0.24057544,33653.0,33648.0,1.40102372]
[1625272111977,0.24057544,33653.0,33649.0,0.00663673]
[1625272112178,0.29957544,33653.0,33652.0,0.37548267]
[1625272112279,0.24057544,33653.0,33652.0,0.37548267]
[1625272112379,0.24057544,33653.0,33652.0,0.59831267]
[1625272112479,0.29957544,33653.0,33652.0,0.59831267]
[1625272112730,1.64376619,33653.0,33652.0,0.59831267]
[1625272112931,0.24057544,33653.0,33652.0,0.59831267]
[1625272113029,0.24057544,33653.0,33652.0,0.6049505]
[1625272113281,0.24057544,33653.0,33652.0,0.59831267]
[1625272114384,0.24057544,33653.0,33652.0,0.60495056]
[1625272114684,0.24057544,33653.0,33652.0,0.59831267]
[1625272114787,0.29957544,33653.0,33652.0,0.59831267]
[1625272115490,0.24057544,33653.0,33652.0,0.59831267]
[1625272115588,0.29957544,33653.0,33652.0,0.59831267]
[1625272115689,0.24057544,33653.0,33652.0,0.59831267]
[1625272116539,0.29957544,33653.0,33652.0,0.59831267]
[1625272116638,0.24057544,33653.0,33652.0,0.59831267]
[1625272118491,0.29957544,33653.0,33652.0,0.59831267]
[1625272118642,0.29957544,33653.0,33652.0,0.37548267]
[1625272120246,0.29957544,33653.0,33652.0,0.61262267]
[1625272120395,0.059,33653.0,33652.0,0.61262267]
[1625272120746,0.059,33653.0,33652.0,0.61926037]
[1625272134525,0.059,33653.0,33652.0,0.38212037]
[1625272138388,0.7585363,33653.0,33652.0,0.38212037]
[1625272139991,0.059,33653.0,33652.0,0.38212037]
[1625272143897,0.059,33653.0,33652.0,4.64072037]
[1625272144099,0.059,33653.0,33652.0,1.07764041]
[1625272145601,0.059,33653.0,33652.0,0.38212037]
[1625272146252,0.059,33653.0,33652.0,1.0776725]
[1625272146804,0.059,33653.0,33652.0,0.38212037]
[1625272147154,0.059,33653.0,33652.0,1.07798613]
[1625272147657,0.059,33653.0,33652.0,2.12183643]
[1625272150765,0.059,33653.0,33652.0,3.3386253]
[1625272153219,0.059,33653.0,33652.0,3.3976253]
[1625272153619,0.059,33653.0,33652.0,4.78901697]
[1625272154420,0.059,33653.0,33652.0,5.02959241]
[1625272158684,0.059,33653.0,33652.0,5.11879241]
[1625272158784,0.70154149,33656.0,33652.0,5.11879241]
[1625272158885,0.70154149,33656.0,33652.0,5.17779241]
[1625272158984,0.70154149,33656.0,33652.0,5.19164392]
[1625272159334,0.70154149,33656.0,33653.0,0.0066401]
[1625272159486,0.70154149,33656.0,33653.0,0.1246401]
[1625272159685,0.70159793,33658.0,33655.0,4.35044078]
[1625272159784,0.50859793,33658.0,33655.0,4.63282078]
[1625272160088,0.50859793,33658.0,33656.0,0.00663999]
[1625272160186,0.50859793,33658.0,33656.0,0.06563999]
[1625272160286,0.50859793,33658.0,33657.0,2.26258297]
[1625272160387,0.50859793,33658.0,33657.0,2.32158297]
[1625272160487,0.50859793,33658.0,33657.0,2.80273385]
[1625272160586,0.50859793,33658.0,33657.0,2.80937382]
[1625272161992,0.50859793,33658.0,33657.0,4.20206659]
[1625272163041,1.05263089,33660.0,33657.0,4.20206659]
[1625272163441,1.05263089,33660.0,33658.0,0.00663972]
[1625272163641,1.05263089,33660.0,33659.0,2.26234251]
[1625272163990,1.05263089,33660.0,33659.0,2.26898214]
[1625272164545,1.05263089,33660.0,33659.0,2.59775758]
[1625272165145,1.05263089,33660.0,33659.0,2.50955758]
[1625272165747,1.05263089,33660.0,33659.0,3.90238951]
[1625272166148,1.05263089,33660.0,33659.0,3.99078951]
[1625272166250,1.05263089,33660.0,33659.0,2.59795758]
[1625272166497,1.05263089,33660.0,33659.0,2.50955758]
[1625272167250,1.11163089,33660.0,33659.0,2.50955758]
[1625272167351,1.17063089,33660.0,33659.0,2.50955758]
[1625272167450,1.17063089,33660.0,33659.0,3.90216613]
[1625272168101,3.80392511,33660.0,33659.0,0.24721507]
[1625272168450,3.80392511,33660.0,33657.0,0.24057544]
[1625272168552,6.06545044,33660.0,33654.0,1.22111615]
[1625272168651,6.06545044,33660.0,33656.0,1.04667098]
[1625272168751,6.06545044,33660.0,33658.0,0.00662899]
[1625272169052,6.06545044,33660.0,33657.0,0.00662904]
[1625272169204,4.2140253,33659.0,33657.0,0.00662904]
[1625272169302,4.1158,33658.0,33653.0,1.2217635]
[1625272169503,4.2338,33658.0,33653.0,1.2217635]
[1625272169606,4.2338,33658.0,33654.0,0.00662975]
[1625272169807,1.58036767,33656.0,33654.0,0.00662975]
[1625272169904,1.69836767,33656.0,33654.0,0.00662975]
[1625272170105,1.69836767,33656.0,33653.0,0.00661812]
[1625272170457,4.21453064,33655.0,33653.0,0.00661812]
[1625272170555,0.48115088,33654.0,33653.0,0.00661812]
[1625272170809,0.59915088,33654.0,33653.0,0.00661812]
[1625272170904,0.59915088,33654.0,33650.0,0.00661828]
[1625272171055,4.81384574,33654.0,33650.0,0.00661828]
[1625272171154,4.81384574,33654.0,33653.0,0.00661828]
[1625272171407,4.81384574,33654.0,33648.0,0.00661857]
[1625272171707,4.21488658,33651.0,33648.0,0.00661857]
[1625272171856,4.54655658,33651.0,33648.0,0.00661857]
[1625272171957,4.54655658,33651.0,33647.0,0.00661861]
[1625272172160,2.63371956,33649.0,33647.0,0.00661861]
[1625272172257,2.75171956,33649.0,33646.0,0.9085]
[1625272172458,2.75171956,33649.0,33648.0,0.00661867]
[1625272172557,2.992295,33649.0,33648.0,0.00661867]
[1625272172758,0.35857544,33649.0,33647.0,0.0066246]
[1625272173008,0.35857544,33649.0,33648.0,0.00662474]
[1625272173310,1.93876603,33649.0,33648.0,0.00662474]
[1625272173508,1.93876603,33649.0,33645.0,0.00662478]
[1625272173960,2.63370944,33646.0,33645.0,0.00662478]
[1625272174060,2.75170944,33646.0,33645.0,0.00662478]
[1625272174565,2.99228488,33646.0,33645.0,0.00662478]
[1625272175217,1.52865155,33646.0,33645.0,0.00662478]
[1625272175316,1.46965155,33646.0,33645.0,0.00662478]
[1625272175417,1.52865155,33646.0,33645.0,0.00662478]
[1625272176120,0.24057544,33646.0,33645.0,1.2296209]
[1625272176923,0.29957544,33646.0,33645.0,1.2296209]
[1625272177072,0.24057544,33646.0,33645.0,2.62710768]
[1625272177274,0.29957544,33646.0,33645.0,2.62710768]
[1625272177373,0.52170544,33646.0,33645.0,2.62710768]
[1625272177675,0.58070544,33646.0,33645.0,2.62710768]
[1625272180679,0.29957544,33646.0,33645.0,2.62710768]
[1625272180879,0.24057544,33646.0,33645.0,2.62710768]
[1625272181030,0.24057544,33646.0,33645.0,2.81788768]
[1625272181529,0.24057544,33646.0,33645.0,4.38749635]
[1625272183985,0.24057544,33646.0,33645.0,2.81788768]
[1625272184085,0.24057544,33646.0,33645.0,2.62710768]
[1625272184285,0.24057544,33646.0,33645.0,2.62710635]
[1625272184588,0.24057544,33646.0,33645.0,4.19710744]
[1625272185541,0.24057544,33646.0,33645.0,2.62710635]
[1625272185791,0.24057544,33646.0,33645.0,4.19727696]
[1625272186242,0.24057544,33646.0,33645.0,2.62710635]
[1625272187851,0.24057544,33646.0,33645.0,4.25564272]
[1625272188002,0.24057544,33646.0,33645.0,4.19664272]
[1625272188100,0.24057544,33646.0,33645.0,4.25564272]
[1625272189502,0.24057544,33646.0,33645.0,4.19664272]
[1625272189604,0.24057544,33646.0,33645.0,4.25564272]
[1625272189703,0.24057544,33646.0,33645.0,4.19664272]
[1625272192106,0.24057544,33646.0,33645.0,2.62710635]
[1625272195111,0.24057544,33646.0,33645.0,4.20059147]
[1625272196361,0.24057544,33646.0,33645.0,4.72490268]
[1625272196812,0.24057544,33646.0,33645.0,4.73854513]
[1625272197222,0.24057544,33646.0,33645.0,5.04419513]
[1625272197320,0.52647355,33650.0,33645.0,5.04419513]
[1625272197419,0.52647355,33650.0,33645.0,5.10319513]
[1625272197619,0.52647355,33650.0,33646.0,0.02025665]
[1625272197768,0.52647355,33650.0,33648.0,4.2158]
[1625272197870,0.52647355,33650.0,33646.0,0.02025665]
[1625272197969,0.52647355,33650.0,33646.0,0.07925665]
[1625272198120,0.24057544,33651.0,33649.0,4.71350428]
[1625272198220,0.29957544,33651.0,33649.0,4.71350428]
[1625272198420,0.29957544,33651.0,33650.0,0.00661645]
[1625272198723,0.29957544,33651.0,33650.0,3.38977842]
[1625272199229,0.29957544,33651.0,33650.0,4.43737813]
[1625272200126,0.24057544,33651.0,33650.0,4.43737813]
[1625272200330,0.29957544,33651.0,33650.0,4.43737813]
[1625272201430,0.24057544,33651.0,33650.0,4.43737813]
[1625272201630,0.04657544,33651.0,33650.0,4.43737813]
[1625272201981,0.04657544,33651.0,33650.0,6.00914929]
[1625272202129,0.04657544,33651.0,33650.0,6.06814929]
[1625272202231,0.04657544,33651.0,33650.0,6.06153284]
[1625272202480,0.24057544,33653.0,33650.0,6.12053284]
[1625272202586,0.24057544,33653.0,33651.0,0.0895]
[1625272202684,0.76693068,33657.0,33652.0,0.24057544]
[1625272202782,0.76693068,33657.0,33652.0,0.54110544]
[1625272202885,0.76693068,33657.0,33652.0,0.65910544]
[1625272203133,0.24057544,33657.0,33656.0,4.1864064]
[1625272203985,0.24057544,33657.0,33656.0,5.7550571]
[1625272204737,0.24057544,33657.0,33656.0,5.99563254]
[1625272205137,0.24057544,33657.0,33656.0,6.05463254]
[1625272207990,0.24057544,33657.0,33656.0,6.14393254]
[1625272208191,0.24057544,33657.0,33656.0,6.16418149]
[1625272208592,0.24057544,33660.0,33656.0,6.16418149]
[1625272208691,0.24057544,33660.0,33656.0,6.15054755]
[1625272208793,0.24057544,33660.0,33659.0,0.24057544]
[1625272208892,0.24057544,33660.0,33659.0,4.71757907]
[1625272209193,0.24057544,33660.0,33659.0,4.72419747]
[1625272209443,0.24057544,33660.0,33659.0,8.54799747]
[1625272209594,0.24057544,33660.0,33659.0,8.63609747]
[1625272209944,0.24057544,33663.0,33659.0,8.63609747]
[1625272210045,0.29957544,33663.0,33659.0,8.63609747]
[1625272210245,0.29957544,33663.0,33660.0,0.00661834]
[1625272210545,0.29957544,33663.0,33662.0,4.18250723]
[1625272210795,0.29957544,33663.0,33662.0,4.42308267]
[1625272211045,0.29957544,33663.0,33662.0,4.42970073]
[1625272211648,0.29957544,33663.0,33662.0,3.03553165]
[1625272217052,0.24057544,33663.0,33662.0,3.03553165]
[1625272217402,0.29957544,33663.0,33662.0,3.03553165]
[1625272217502,0.24057544,33663.0,33662.0,3.03553165]
[1625272217951,0.24057544,33663.0,33662.0,1.81563371]
[1625272218152,0.29957544,33663.0,33662.0,1.81563371]
[1625272218253,0.24057544,33663.0,33662.0,1.81563371]
[1625272218402,0.24057544,33663.0,33662.0,3.03429901]
[1625272218802,0.24057544,33663.0,33662.0,1.81563371]
[1625272219654,0.5252697,33666.0,33662.0,1.81563371]
[1625272219904,0.5252697,33666.0,33662.0,2.51202991]
[1625272220105,0.5252697,33666.0,33663.0,0.00661858]
[1625272220456,0.5252697,33666.0,33664.0,1.21857405]
[1625272220657,0.5842697,33666.0,33664.0,1.21857405]
[1625272220759,0.88384514,33666.0,33665.0,0.24057544]
[1625272220957,0.88384514,33666.0,33665.0,0.76944207]
[1625272221206,5.87364514,33666.0,33665.0,0.76944207]
[1625272221608,7.6227385,33666.0,33665.0,0.24719418]
[1625272221708,2.6329385,33666.0,33665.0,0.24719418]
[1625272222010,2.5739385,33666.0,33665.0,0.24719418]
[1625272222211,2.6329385,33666.0,33665.0,0.24719418]
[1625272222313,7.7307385,33666.0,33665.0,0.24719418]
[1625272222412,2.6329385,33666.0,33665.0,0.24719418]
[1625272222614,0.88384514,33666.0,33665.0,0.24719418]
[1625272223064,0.82484514,33666.0,33665.0,0.24719418]
[1625272223616,0.29957544,33666.0,33665.0,0.76924491]
[1625272223716,0.24057544,33666.0,33665.0,0.76924491]
[1625272224074,0.24057544,33666.0,33665.0,1.46519227]
[1625272225473,0.24057544,33666.0,33665.0,2.50843871]
[1625272226527,0.87428297,33669.0,33665.0,2.50843871]
[1625272226777,0.87428297,33669.0,33668.0,0.24057544]
[1625272226876,0.87422846,33670.0,33668.0,0.51222544]
[1625272226979,0.87422846,33670.0,33668.0,5.60222544]
[1625272227279,0.87422846,33670.0,33669.0,0.00661716]
[1625272227430,0.24057544,33671.0,33669.0,1.22254959]
[1625272227778,0.24057544,33671.0,33670.0,0.00664298]
[1625272227877,0.24057544,33671.0,33670.0,0.3539423]
[1625272228829,0.24057544,33671.0,33670.0,0.59451774]
[1625272229632,0.24057544,33671.0,33670.0,1.11519529]
[1625272230234,0.24057544,33671.0,33670.0,1.46237218]
[1625272230633,0.24057544,33671.0,33670.0,1.52137218]
[1625272231334,0.24057544,33671.0,33670.0,2.56240602]
[1625272231784,0.24057544,33675.0,33670.0,2.56240602]
[1625272231883,0.29957544,33675.0,33670.0,2.56240602]
[1625272232185,0.29957544,33675.0,33671.0,0.00664084]
[1625272232339,0.29957544,33675.0,33671.0,0.06564084]
[1625272232635,0.29957544,33675.0,33674.0,2.25263822]
[1625272232735,0.29957544,33675.0,33674.0,2.31163822]
[1625272232836,0.29957544,33675.0,33674.0,2.55221366]
[1625272232936,0.29957544,33675.0,33674.0,2.5588571]
[1625272234439,0.24057544,33675.0,33674.0,2.5588571]
[1625272234640,0.24057544,33675.0,33674.0,3.77138309]
[1625272236293,0.34920296,33681.0,33674.0,2.5588571]
[1625272236593,0.34920296,33681.0,33674.0,2.6178571]
[1625272236695,0.34920296,33681.0,33675.0,0.00664292]
[1625272236794,0.20120296,33681.0,33675.0,0.32390292]
[1625272236897,0.20120296,33681.0,33680.0,0.72172632]
[1625272236996,0.52371718,33682.0,33680.0,0.72172632]
[1625272236997,0.3492058,33682.0,33680.0,0.78072632]
[1625272237244,0.3492058,33682.0,33681.0,4.6657]
[1625272237493,0.3492058,33682.0,33681.0,4.67234222]
[1625272237597,1.22187871,33688.0,33681.0,5.88291963]
[1625272237694,1.33987871,33688.0,33681.0,5.88291963]
[1625272237795,1.28087871,33688.0,33681.0,5.88291963]
[1625272237895,1.28087871,33688.0,33681.0,6.38291963]
[1625272237996,0.059,33688.0,33682.0,1.20961485]
[1625272238096,0.059,33688.0,33682.0,1.93641618]
[1625272238196,0.059,33688.0,33682.0,1.99541618]
[1625272238296,0.059,33688.0,33683.0,0.00664128]
[1625272238395,0.059,33688.0,33683.0,0.06564128]
[1625272238750,1.22104028,33693.0,33683.0,0.06564128]
[1625272238751,0.52332071,33695.0,33687.0,2.2425038]
[1625272238852,0.52332071,33695.0,33688.0,0.5]
[1625272238997,0.22732071,33695.0,33694.0,1.23116176]
[1625272239097,0.22732071,33695.0,33694.0,1.29016176]
[1625272239198,0.35492353,33696.0,33694.0,1.34916176]
[1625272239300,0.69762381,33707.0,33694.0,4.27261275]
[1625272239398,0.69762381,33707.0,33699.0,4.0468]
[1625272239498,0.69762381,33707.0,33699.0,4.1058]
[1625272239700,0.69762381,33707.0,33700.0,0.00663826]
[1625272239799,0.69762381,33707.0,33700.0,0.06563826]
[1625272239902,0.69762381,33707.0,33700.0,0.12463826]
[1625272240002,1.10114543,33714.0,33700.0,0.12463826]
[1625272240101,1.04414543,33714.0,33700.0,0.12463826]
[1625272240200,1.16214543,33714.0,33700.0,0.118]
[1625272240301,1.10314543,33714.0,33700.0,0.118]
[1625272240500,1.16214543,33714.0,33700.0,0.118]
[1625272240601,1.04417647,33713.0,33700.0,0.059]
[1625272240805,1.16217647,33713.0,33699.0,1.02873305]
[1625272240901,1.40275191,33713.0,33712.0,0.24057544]
[1625272241204,0.35857544,33713.0,33712.0,0.24057544]
[1625272241904,1.4014114,33713.0,33712.0,0.24057544]
[1625272242604,0.35857544,33713.0,33712.0,0.24057544]
[1625272242804,0.35857544,33713.0,33712.0,0.45131544]
[1625272242904,0.59915088,33713.0,33712.0,0.45131544]
[1625272244410,0.59915088,33713.0,33712.0,0.24057544]
[1625272251925,0.59915088,33713.0,33712.0,7.544e-05]
[1625272252026,0.91229088,33713.0,33712.0,7.544e-05]
[1625272255481,0.59915088,33713.0,33712.0,7.544e-05]
[1625272256434,0.59915088,33713.0,33712.0,0.18978544]
[1625272257539,0.59915088,33713.0,33712.0,7.544e-05]
[1625272258689,0.54015088,33713.0,33712.0,7.544e-05]
[1625272259392,0.59915088,33713.0,33712.0,7.544e-05]
[1625272262849,0.54015088,33713.0,33712.0,7.544e-05]
[1625272263249,0.29957544,33713.0,33712.0,7.544e-05]
[1625272268359,0.3103774,33713.0,33712.0,7.544e-05]
[1625272268658,0.29957544,33713.0,33712.0,7.544e-05]
[1625272276573,0.52214544,33713.0,33712.0,7.544e-05]
[1625272277724,0.58114544,33713.0,33712.0,7.544e-05]
[1625272279278,0.58114544,33713.0,33709.0,0.24057544]
[1625272279728,0.58114544,33713.0,33701.0,0.1705513]
[1625272279828,0.58114544,33713.0,33701.0,0.2295513]